[Event "*** Titled Tuesday 3|2 Blitz"]
[Site "Chess.com"]
[Date "2016.08.02"]
[Round "5"]
[White "awb2001"]
[Black "Caisachess"]
[Result "1-0"]
[WhiteElo "2318"]
[BlackElo "2180"]
[TimeControl "180+2"]
[EndTime "12:04:36 PDT"]
[Termination "awb2001 won by checkmate"]

1. e4 {[%clk 0:03:01.9]} 1... e5 {[%clk 0:03:00.6]} 2. Nf3 {[%clk 0:03:03]} 2...
Nc6 {[%clk 0:03:02]} 3. d4 {[%clk 0:03:04.2]} 3... exd4 {[%clk 0:03:02.2]} 4.
Nxd4 {[%clk 0:03:06.1]} 4... Bb4+ {[%clk 0:03:03.3]} 5. c3 {[%clk 0:03:06.9]}
5... Bc5 {[%clk 0:03:04.9]} 6. Be3 {[%clk 0:03:07.4]} 6... Bb6 {[%clk
0:03:06.5]} 7. Bc4 {[%clk 0:03:07]} 7... d6 {[%clk 0:03:04.6]} 8. O-O {[%clk
0:03:07.8]} 8... Nf6 {[%clk 0:02:55.1]} 9. Nd2 {[%clk 0:03:04.8]} 9... O-O
{[%clk 0:02:54.5]} 10. Kh1 {[%clk 0:03:03.4]} 10... d5 {[%clk 0:02:55.8]} 11.
exd5 {[%clk 0:02:58.2]} 11... Nxd5 {[%clk 0:02:56.8]} 12. Nxc6 {[%clk
0:02:49.3]} 12... bxc6 {[%clk 0:02:51.2]} 13. Bd4 {[%clk 0:02:32.6]} 13... Bxd4
{[%clk 0:02:46.5]} 14. cxd4 {[%clk 0:02:33.2]} 14... Qh4 {[%clk 0:02:48.1]} 15.
Nf3 {[%clk 0:02:31.7]} 15... Qh5 {[%clk 0:02:49.3]} 16. Qb3 {[%clk 0:02:19.9]}
16... Bg4 {[%clk 0:02:33]} 17. Ne5 {[%clk 0:02:18.7]} 17... Rab8 {[%clk
0:02:34]} 18. Qg3 {[%clk 0:02:13.4]} 18... Be6 {[%clk 0:02:21.2]} 19. b3 {[%clk
0:02:04.7]} 19... Rb6 {[%clk 0:02:08.3]} 20. Rac1 {[%clk 0:02:02.4]} 20... f6
{[%clk 0:02:05.2]} 21. Bxd5 {[%clk 0:01:59.5]} 21... cxd5 {[%clk 0:02:03.5]} 22.
Rxc7 {[%clk 0:01:58.4]} 22... Qh6 {[%clk 0:01:45.1]} 23. Nd7 {[%clk 0:01:50.4]}
23... Bxd7 {[%clk 0:01:44.3]} 24. Rxd7 {[%clk 0:01:52.3]} 24... a5 {[%clk
0:01:40.5]} 25. Rxd5 {[%clk 0:01:49.8]} 25... Re8 {[%clk 0:01:35.6]} 26. Qc7
{[%clk 0:01:42.2]} 26... Rbe6 {[%clk 0:01:34.7]} 27. Rd8 {[%clk 0:01:40.3]}
27... Qd2 {[%clk 0:01:26.9]} 28. d5 {[%clk 0:01:23.2]} 28... Qe1 {[%clk
0:01:19.7]} 29. Rxe8+ {[%clk 0:01:16.4]} 29... Rxe8 {[%clk 0:01:19.1]} 30. Kg1
{[%clk 0:01:17.5]} 30... Qd2 {[%clk 0:01:17.7]} 31. d6 {[%clk 0:01:16.8]} 31...
Re5 {[%clk 0:01:13.6]} 32. Qc4+ {[%clk 0:01:16.9]} 32... Rd5 {[%clk 0:01:12]}
33. d7 {[%clk 0:01:16.3]} 33... Kf8 {[%clk 0:01:13.4]} 34. Qc8+ {[%clk
0:01:13.7]} 34... Kf7 {[%clk 0:01:12.6]} 35. Qe8# {[%clk 0:01:15.6]} 1-0

[Event "*** Titled Tuesday 3|2 Blitz"]
[Site "Chess.com"]
[Date "2016.08.02"]
[Round "5"]
[White "MinhGTrAn"]
[Black "Ginger_GM"]
[Result "1-0"]
[WhiteElo "2605"]
[BlackElo "2404"]
[TimeControl "180+2"]
[EndTime "12:05:32 PDT"]
[Termination "MinhGTrAn won on time"]

1. d4 {[%clk 0:03:01.9]} 1... e6 {[%clk 0:03:00.3]} 2. c4 {[%clk 0:03:02.5]}
2... f5 {[%clk 0:02:46.7]} 3. Nc3 {[%clk 0:02:58.5]} 3... Nf6 {[%clk 0:02:47.4]}
4. g3 {[%clk 0:02:57.8]} 4... Be7 {[%clk 0:02:48]} 5. Bg2 {[%clk 0:02:58.8]}
5... O-O {[%clk 0:02:45.4]} 6. Nf3 {[%clk 0:03:00]} 6... d6 {[%clk 0:02:36.1]}
7. O-O {[%clk 0:02:49.3]} 7... a5 {[%clk 0:02:28.6]} 8. Re1 {[%clk 0:02:34.1]}
8... Ne4 {[%clk 0:01:48]} 9. Qc2 {[%clk 0:02:32.4]} 9... Nc6 {[%clk 0:01:47.3]}
10. Nxe4 {[%clk 0:02:31.2]} 10... Nb4 {[%clk 0:01:41.9]} 11. Qb1 {[%clk
0:02:32]} 11... fxe4 {[%clk 0:01:42.6]} 12. Qxe4 {[%clk 0:02:33.9]} 12... e5
{[%clk 0:01:42.8]} 13. g4 {[%clk 0:02:09.3]} 13... c6 {[%clk 0:01:42]} 14. a3
{[%clk 0:02:05.4]} 14... d5 {[%clk 0:01:35.6]} 15. Qb1 {[%clk 0:02:01]} 15... e4
{[%clk 0:01:35.7]} 16. Ne5 {[%clk 0:01:49.8]} 16... Bh4 {[%clk 0:01:23.1]} 17.
Be3 {[%clk 0:01:48.6]} 17... Na6 {[%clk 0:01:21.6]} 18. cxd5 {[%clk 0:01:49.4]}
18... cxd5 {[%clk 0:01:22.4]} 19. Qa2 {[%clk 0:01:50.5]} 19... Kh8 {[%clk
0:01:14.4]} 20. Rac1 {[%clk 0:01:49.7]} 20... Nc7 {[%clk 0:01:10.3]} 21. Rxc7
{[%clk 0:01:31.3]} 21... Qxc7 {[%clk 0:01:02.1]} 22. Qxd5 {[%clk 0:01:32.9]}
22... Ra6 {[%clk 0:00:55.4]} 23. Qxe4 {[%clk 0:01:32.5]} 23... Raf6 {[%clk
0:00:44.6]} 24. Rf1 {[%clk 0:01:33.6]} 24... Be6 {[%clk 0:00:38.4]} 25. f4
{[%clk 0:01:31.8]} 25... Rd8 {[%clk 0:00:24.9]} 26. Qxb7 {[%clk 0:01:26.6]}
26... Qc2 {[%clk 0:00:21.6]} 27. Bf3 {[%clk 0:01:17.5]} 27... Rdf8 {[%clk
0:00:13.7]} 28. Rc1 {[%clk 0:01:15.9]} 1-0

[Event "*** Titled Tuesday 3|2 Blitz"]
[Site "Chess.com"]
[Date "2016.08.02"]
[Round "5"]
[White "Saitama_Hero"]
[Black "Blitzstream"]
[Result "1-0"]
[WhiteElo "2211"]
[BlackElo "2457"]
[TimeControl "180+2"]
[EndTime "12:05:46 PDT"]
[Termination "Saitama_Hero won by resignation"]

1. d4 {[%clk 0:03:01.9]} 1... d5 {[%clk 0:03:00.8]} 2. c4 {[%clk 0:03:03]} 2...
c6 {[%clk 0:03:02.1]} 3. cxd5 {[%clk 0:03:04.6]} 3... cxd5 {[%clk 0:03:02.8]} 4.
Nc3 {[%clk 0:03:06.5]} 4... Nf6 {[%clk 0:03:03.5]} 5. f3 {[%clk 0:03:08]} 5...
Nc6 {[%clk 0:02:49.8]} 6. e4 {[%clk 0:03:08.2]} 6... dxe4 {[%clk 0:02:32.6]} 7.
d5 {[%clk 0:03:10.1]} 7... Ne5 {[%clk 0:02:33.3]} 8. fxe4 {[%clk 0:03:10.1]}
8... e6 {[%clk 0:02:31.8]} 9. Nf3 {[%clk 0:03:11.5]} 9... Nxf3+ {[%clk
0:02:20.4]} 10. Qxf3 {[%clk 0:03:13.4]} 10... exd5 {[%clk 0:02:04.3]} 11. e5
{[%clk 0:03:13.6]} 11... Ne4 {[%clk 0:01:55.7]} 12. Bb5+ {[%clk 0:03:14]} 12...
Bd7 {[%clk 0:01:56.1]} 13. Rf1 {[%clk 0:03:15.2]} 13... f6 {[%clk 0:01:38.4]}
14. exf6 {[%clk 0:03:17.1]} 14... Nxf6 {[%clk 0:01:31.5]} 15. Qe2+ {[%clk
0:03:18.4]} 15... Qe7 {[%clk 0:01:28.9]} 16. Bxd7+ {[%clk 0:03:14.6]} 16... Kxd7
{[%clk 0:01:21.8]} 17. Be3 {[%clk 0:02:18.5]} 17... Re8 {[%clk 0:01:22.1]} 18.
Kd2 {[%clk 0:01:51.4]} 18... d4 {[%clk 0:01:16.8]} 19. Qb5+ {[%clk 0:01:45.7]}
19... Kc8 {[%clk 0:01:14.4]} 20. Bxd4 {[%clk 0:01:44.3]} 20... Qd7 {[%clk
0:01:07.4]} 21. Qxd7+ {[%clk 0:01:30.7]} 21... Nxd7 {[%clk 0:01:00]} 22. Rac1
{[%clk 0:01:26.5]} 22... Kb8 {[%clk 0:00:55.1]} 23. Rf7 {[%clk 0:01:22.6]} 23...
Re7 {[%clk 0:00:51.7]} 24. Rcf1 {[%clk 0:01:02.9]} 24... Rg8 {[%clk 0:00:43.7]}
25. Nd5 {[%clk 0:01:00.5]} 25... Rxf7 {[%clk 0:00:45]} 26. Rxf7 {[%clk
0:01:01.2]} 26... Kc8 {[%clk 0:00:40.4]} 27. Bxa7 {[%clk 0:01:00]} 27... Ne5
{[%clk 0:00:22.1]} 28. Rc7+ {[%clk 0:00:51.7]} 28... Kd8 {[%clk 0:00:23.3]} 29.
Rxb7 {[%clk 0:00:53.6]} 29... g6 {[%clk 0:00:18.8]} 30. Bb6+ {[%clk 0:00:45.1]}
30... Kc8 {[%clk 0:00:19.4]} 31. Rc7+ {[%clk 0:00:45.2]} 31... Kb8 {[%clk
0:00:17]} 32. Ba7+ {[%clk 0:00:45.7]} 1-0

[Event "*** Titled Tuesday 3|2 Blitz"]
[Site "Chess.com"]
[Date "2016.08.02"]
[Round "5"]
[White "Pudor"]
[Black "MyleneFarmer"]
[Result "0-1"]
[WhiteElo "2295"]
[BlackElo "2370"]
[TimeControl "180+2"]
[EndTime "12:06:09 PDT"]
[Termination "MyleneFarmer won by resignation"]

1. d4 {[%clk 0:03:01.9]} 1... d5 {[%clk 0:03:00.4]} 2. c4 {[%clk 0:03:02.8]}
2... c6 {[%clk 0:03:01.5]} 3. Nf3 {[%clk 0:03:03.6]} 3... Nf6 {[%clk 0:03:02]}
4. Nc3 {[%clk 0:03:04.8]} 4... e6 {[%clk 0:03:03]} 5. Bg5 {[%clk 0:03:05.5]}
5... dxc4 {[%clk 0:03:04]} 6. e4 {[%clk 0:03:06.3]} 6... b5 {[%clk 0:03:04.8]}
7. e5 {[%clk 0:03:06.8]} 7... h6 {[%clk 0:03:06.5]} 8. Bh4 {[%clk 0:03:07.7]}
8... g5 {[%clk 0:03:08.2]} 9. Nxg5 {[%clk 0:03:08.6]} 9... hxg5 {[%clk
0:03:10.1]} 10. Bxg5 {[%clk 0:03:09.8]} 10... Nbd7 {[%clk 0:03:11.8]} 11. g3
{[%clk 0:03:06.6]} 11... Bb7 {[%clk 0:03:13]} 12. Bg2 {[%clk 0:03:05.2]} 12...
Qb6 {[%clk 0:03:14.2]} 13. exf6 {[%clk 0:03:06.2]} 13... O-O-O {[%clk
0:03:15.7]} 14. O-O {[%clk 0:03:06.3]} 14... c5 {[%clk 0:03:17.4]} 15. d5 {[%clk
0:03:06.2]} 15... b4 {[%clk 0:03:19.1]} 16. Rb1 {[%clk 0:03:06.9]} 16... Qa6
{[%clk 0:03:05.3]} 17. Na4 {[%clk 0:03:00.8]} 17... Ne5 {[%clk 0:02:51.5]} 18.
Re1 {[%clk 0:02:44.7]} 18... Nd3 {[%clk 0:02:51.9]} 19. dxe6 {[%clk 0:02:26.6]}
19... Nxe1 {[%clk 0:02:49.7]} 20. e7 {[%clk 0:01:56.3]} 20... Bxe7 {[%clk
0:02:27.1]} 21. fxe7 {[%clk 0:01:49.4]} 21... Rxd1 {[%clk 0:02:16.3]} 22. Rxd1
{[%clk 0:01:51.3]} 22... Nd3 {[%clk 0:02:14.4]} 23. Nxc5 {[%clk 0:01:42.8]}
23... Qb6 {[%clk 0:01:50.6]} 24. Bxb7+ {[%clk 0:01:32.5]} 24... Kc7 {[%clk
0:01:51.7]} 25. Rxd3 {[%clk 0:00:47.9]} 25... Qxc5 {[%clk 0:01:37.8]} 26. Rd8
{[%clk 0:00:46]} 26... Qxg5 {[%clk 0:01:34.9]} 27. Rxh8 {[%clk 0:00:42.6]} 27...
Qxe7 {[%clk 0:01:35.2]} 28. Bf3 {[%clk 0:00:32.4]} 28... c3 {[%clk 0:01:33.6]}
29. bxc3 {[%clk 0:00:26.5]} 29... bxc3 {[%clk 0:01:35.5]} 30. Rh4 {[%clk
0:00:25.9]} 30... Qe6 {[%clk 0:01:18.3]} 31. Be4 {[%clk 0:00:17.3]} 31... Qxa2
{[%clk 0:01:14.1]} 32. Bd3 {[%clk 0:00:18.7]} 32... Qd2 {[%clk 0:01:10.7]} 33.
Bf5 {[%clk 0:00:18.3]} 33... Qd5 {[%clk 0:01:06]} 34. Bc2 {[%clk 0:00:17]} 34...
f5 {[%clk 0:00:53.3]} 35. Rf4 {[%clk 0:00:17.3]} 35... Qd2 {[%clk 0:00:54.2]}
36. Bxf5 {[%clk 0:00:17.7]} 36... Kd6 {[%clk 0:00:54.2]} 37. h4 {[%clk
0:00:13.1]} 37... c2 {[%clk 0:00:53.2]} 38. Bxc2 {[%clk 0:00:14.2]} 38... Qxc2
{[%clk 0:00:54.2]} 39. Rf6+ {[%clk 0:00:15]} 39... Ke5 {[%clk 0:00:54.6]} 40.
Rf4 {[%clk 0:00:16]} 40... a5 {[%clk 0:00:55.2]} 41. Kg2 {[%clk 0:00:17.2]}
41... a4 {[%clk 0:00:56.3]} 0-1

[Event "*** Titled Tuesday 3|2 Blitz"]
[Site "Chess.com"]
[Date "2016.08.02"]
[Round "5"]
[White "ChessWarrior7197"]
[Black "Colombiano07"]
[Result "1-0"]
[WhiteElo "2464"]
[BlackElo "2226"]
[TimeControl "180+2"]
[EndTime "12:06:44 PDT"]
[Termination "ChessWarrior7197 won by resignation"]

1. e4 {[%clk 0:03:01.9]} 1... c5 {[%clk 0:02:59.3]} 2. Nf3 {[%clk 0:03:02.5]}
2... Nc6 {[%clk 0:02:59.6]} 3. Bb5 {[%clk 0:03:03.3]} 3... g6 {[%clk 0:03:00.4]}
4. Bxc6 {[%clk 0:03:04.4]} 4... bxc6 {[%clk 0:03:01.5]} 5. O-O {[%clk
0:03:05.9]} 5... Bg7 {[%clk 0:03:02.4]} 6. c3 {[%clk 0:03:07.5]} 6... Nh6 {[%clk
0:03:02.6]} 7. d4 {[%clk 0:03:07.4]} 7... cxd4 {[%clk 0:03:03.3]} 8. cxd4 {[%clk
0:03:08.7]} 8... d5 {[%clk 0:03:00.2]} 9. Nc3 {[%clk 0:03:09.4]} 9... O-O {[%clk
0:02:59.2]} 10. h3 {[%clk 0:03:08.3]} 10... f6 {[%clk 0:02:49]} 11. Re1 {[%clk
0:03:01.2]} 11... Nf7 {[%clk 0:02:45.1]} 12. Qb3 {[%clk 0:02:58.1]} 12... e6
{[%clk 0:02:38.1]} 13. Bf4 {[%clk 0:02:58.7]} 13... Qb6 {[%clk 0:02:32.9]} 14.
Qa3 {[%clk 0:02:54.7]} 14... a5 {[%clk 0:02:20.4]} 15. Rac1 {[%clk 0:02:53.7]}
15... Rd8 {[%clk 0:01:39.8]} 16. Na4 {[%clk 0:02:51.8]} 16... Qb4 {[%clk
0:01:24.7]} 17. Qxb4 {[%clk 0:02:35]} 17... axb4 {[%clk 0:01:24.5]} 18. b3
{[%clk 0:02:36.6]} 18... Bd7 {[%clk 0:01:08.7]} 19. e5 {[%clk 0:02:30.5]} 19...
fxe5 {[%clk 0:01:06]} 20. Nxe5 {[%clk 0:02:31.2]} 20... Nxe5 {[%clk 0:00:57.4]}
21. Bxe5 {[%clk 0:02:32]} 21... Bf8 {[%clk 0:00:51.4]} 22. Re2 {[%clk
0:02:29.7]} 22... Ra6 {[%clk 0:00:44.8]} 23. f4 {[%clk 0:02:26.6]} 23... Rda8
{[%clk 0:00:44.6]} 24. Kh2 {[%clk 0:02:23.5]} 24... Rxa4 {[%clk 0:00:43.3]} 25.
bxa4 {[%clk 0:02:23.4]} 25... Rxa4 {[%clk 0:00:44.8]} 26. g4 {[%clk 0:02:20]}
26... Ra3 {[%clk 0:00:43.3]} 27. h4 {[%clk 0:02:18.2]} 27... Kf7 {[%clk
0:00:42.8]} 28. h5 {[%clk 0:02:18.1]} 28... gxh5 {[%clk 0:00:36.7]} 29. gxh5
{[%clk 0:02:18.5]} 29... Bh6 {[%clk 0:00:37.3]} 30. Rb1 {[%clk 0:02:15.5]} 30...
Bf8 {[%clk 0:00:36.4]} 31. Rg2 {[%clk 0:02:15.1]} 31... Be8 {[%clk 0:00:31.7]}
32. Rf1 {[%clk 0:02:09.9]} 32... Ke7 {[%clk 0:00:27.8]} 33. f5 {[%clk
0:02:08.8]} 33... Bxh5 {[%clk 0:00:26.3]} 34. fxe6 {[%clk 0:02:07.5]} 34... Rf3
{[%clk 0:00:24]} 35. Rxf3 {[%clk 0:02:00.9]} 35... Bxf3 {[%clk 0:00:24.3]} 36.
Rf2 {[%clk 0:02:02.1]} 36... Bg4 {[%clk 0:00:22.6]} 37. Bc7 {[%clk 0:02:00.5]}
37... Bxe6 {[%clk 0:00:21.7]} 38. Ba5 {[%clk 0:02:00.1]} 38... Ke8 {[%clk
0:00:21.6]} 39. Rb2 {[%clk 0:02:00.9]} 39... Bg7 {[%clk 0:00:18.3]} 40. Bb6
{[%clk 0:02:01.8]} 40... Bf8 {[%clk 0:00:18.5]} 41. Kg3 {[%clk 0:02:03.2]} 41...
Kd7 {[%clk 0:00:18.6]} 42. Bc5 {[%clk 0:02:03.4]} 42... Bxc5 {[%clk 0:00:19.6]}
43. dxc5 {[%clk 0:02:04.6]} 43... d4 {[%clk 0:00:20.9]} 44. Rxb4 {[%clk
0:02:05.7]} 44... Bxa2 {[%clk 0:00:22.1]} 45. Rxd4+ {[%clk 0:02:06.7]} 45... Ke6
{[%clk 0:00:22.6]} 46. Kf4 {[%clk 0:02:06.6]} 46... Bd5 {[%clk 0:00:22.8]} 47.
Rd2 {[%clk 0:02:06.4]} 47... Kf7 {[%clk 0:00:21.5]} 48. Ke5 {[%clk 0:02:06.9]}
48... h5 {[%clk 0:00:19.7]} 49. Kd6 {[%clk 0:02:01.1]} 49... Ke8 {[%clk
0:00:18]} 50. Rh2 {[%clk 0:01:58.5]} 50... Bf3 {[%clk 0:00:18.5]} 51. Rh3 {[%clk
0:01:59.3]} 51... Bg4 {[%clk 0:00:18.8]} 52. Rg3 {[%clk 0:01:59.4]} 52... Kd8
{[%clk 0:00:17.2]} 53. Kxc6 {[%clk 0:01:59.1]} 53... Kc8 {[%clk 0:00:12.3]} 54.
Kd6 {[%clk 0:01:58.9]} 54... Kd8 {[%clk 0:00:12.5]} 55. c6 {[%clk 0:02:00.2]}
55... Kc8 {[%clk 0:00:11.7]} 56. c7 {[%clk 0:02:00.6]} 56... Kb7 {[%clk
0:00:05.5]} 57. Rxg4 {[%clk 0:02:01.9]} 57... hxg4 {[%clk 0:00:05.7]} 58. Kd7
{[%clk 0:02:03.3]} 1-0

[Event "*** Titled Tuesday 3|2 Blitz"]
[Site "Chess.com"]
[Date "2016.08.02"]
[Round "5"]
[White "DanielNaroditsky"]
[Black "petrpalachev"]
[Result "1-0"]
[WhiteElo "2663"]
[BlackElo "2430"]
[TimeControl "180+2"]
[EndTime "12:06:46 PDT"]
[Termination "DanielNaroditsky won by resignation"]

1. d4 {[%clk 0:03:01.9]} 1... Nf6 {[%clk 0:02:59.7]} 2. Bg5 {[%clk 0:03:03.1]}
2... d5 {[%clk 0:03:00.3]} 3. Bxf6 {[%clk 0:03:00.9]} 3... gxf6 {[%clk
0:02:58.1]} 4. e3 {[%clk 0:03:02.8]} 4... c5 {[%clk 0:02:59.5]} 5. Nf3 {[%clk
0:03:03.4]} 5... Nc6 {[%clk 0:03:00.3]} 6. c4 {[%clk 0:03:00.3]} 6... cxd4
{[%clk 0:02:57.6]} 7. cxd5 {[%clk 0:03:01.5]} 7... Qxd5 {[%clk 0:02:51.3]} 8.
Nc3 {[%clk 0:02:56.6]} 8... Qa5 {[%clk 0:02:43.6]} 9. exd4 {[%clk 0:02:55.8]}
9... Bg4 {[%clk 0:02:38.8]} 10. d5 {[%clk 0:02:56.1]} 10... O-O-O {[%clk
0:02:13.3]} 11. Qb3 {[%clk 0:02:56.8]} 11... Bxf3 {[%clk 0:02:10.4]} 12. gxf3
{[%clk 0:02:58.7]} 12... Ne5 {[%clk 0:02:06.5]} 13. Be2 {[%clk 0:02:54.3]} 13...
Bh6 {[%clk 0:02:05.7]} 14. O-O {[%clk 0:02:51.8]} 14... Rhg8+ {[%clk 0:02:06.6]}
15. Kh1 {[%clk 0:02:53.2]} 15... Kb8 {[%clk 0:02:07.8]} 16. Rad1 {[%clk
0:02:45.5]} 16... Qb6 {[%clk 0:01:55.4]} 17. Qa4 {[%clk 0:02:40.1]} 17... Ng6
{[%clk 0:01:51.8]} 18. Rd4 {[%clk 0:02:38.6]} 18... Rc8 {[%clk 0:01:44.7]} 19.
Rb4 {[%clk 0:02:37.8]} 19... Qc5 {[%clk 0:01:42.5]} 20. Bd3 {[%clk 0:01:58.1]}
20... Bd2 {[%clk 0:01:41.8]} 21. Be4 {[%clk 0:01:50.3]} 21... Bxc3 {[%clk
0:01:36.5]} 22. bxc3 {[%clk 0:01:49.9]} 22... b6 {[%clk 0:01:27.8]} 23. Rfb1
{[%clk 0:01:27.1]} 23... Ne5 {[%clk 0:00:47.6]} 24. Qa6 {[%clk 0:00:56.9]} 24...
Nc4 {[%clk 0:00:26]} 25. Rxc4 {[%clk 0:00:41.8]} 25... Qxc4 {[%clk 0:00:07.9]}
26. Rxb6+ {[%clk 0:00:42.5]} 26... axb6 {[%clk 0:00:08.7]} 27. Qxb6+ {[%clk
0:00:44.4]} 27... Ka8 {[%clk 0:00:10.2]} 28. d6+ {[%clk 0:00:46.3]} 28... Qxe4
{[%clk 0:00:11.1]} 29. fxe4 {[%clk 0:00:46.7]} 29... exd6 {[%clk 0:00:12.5]} 30.
Qa6+ {[%clk 0:00:47]} 30... Kb8 {[%clk 0:00:13.5]} 31. Qxd6+ {[%clk 0:00:48.9]}
31... Kb7 {[%clk 0:00:14.8]} 32. Qxf6 {[%clk 0:00:49.3]} 32... Rcd8 {[%clk
0:00:12.4]} 33. Qxf7+ {[%clk 0:00:50.1]} 33... Kb6 {[%clk 0:00:13]} 34. Qb3+
{[%clk 0:00:49]} 34... Kc5 {[%clk 0:00:13.6]} 35. e5 {[%clk 0:00:43.3]} 35...
Rg6 {[%clk 0:00:06.2]} 36. Qb4+ {[%clk 0:00:41.8]} 36... Kc6 {[%clk 0:00:07.3]}
37. Qe4+ {[%clk 0:00:41.5]} 37... Kc7 {[%clk 0:00:08]} 38. h4 {[%clk 0:00:42]}
38... Rd1+ {[%clk 0:00:08.3]} 39. Kh2 {[%clk 0:00:43.6]} 39... Rf1 {[%clk
0:00:09.4]} 40. Qc4+ {[%clk 0:00:44]} 1-0

[Event "*** Titled Tuesday 3|2 Blitz"]
[Site "Chess.com"]
[Date "2016.08.02"]
[Round "5"]
[White "Sanan_Sjugirov"]
[Black "StellarChessPro"]
[Result "1-0"]
[WhiteElo "2668"]
[BlackElo "2352"]
[TimeControl "180+2"]
[EndTime "12:06:49 PDT"]
[Termination "Sanan_Sjugirov won by resignation"]

1. d4 {[%clk 0:03:01.9]} 1... d5 {[%clk 0:03:01.2]} 2. Nf3 {[%clk 0:03:03.2]}
2... c6 {[%clk 0:03:03.1]} 3. Bg5 {[%clk 0:03:04.5]} 3... Nf6 {[%clk 0:03:03.9]}
4. Nbd2 {[%clk 0:03:05.4]} 4... Bf5 {[%clk 0:03:02.5]} 5. e3 {[%clk 0:03:05.8]}
5... Nbd7 {[%clk 0:03:03.2]} 6. c4 {[%clk 0:03:02.4]} 6... e6 {[%clk 0:03:04]}
7. Qb3 {[%clk 0:03:02.7]} 7... Qb6 {[%clk 0:03:01.5]} 8. c5 {[%clk 0:03:01.8]}
8... Qxb3 {[%clk 0:03:02.8]} 9. axb3 {[%clk 0:03:03.7]} 9... Ne4 {[%clk
0:03:03.2]} 10. Bf4 {[%clk 0:03:00.1]} 10... f6 {[%clk 0:03:03.1]} 11. b4 {[%clk
0:02:57.5]} 11... g5 {[%clk 0:03:03.2]} 12. Bg3 {[%clk 0:02:46.2]} 12... Nxg3
{[%clk 0:03:02.4]} 13. hxg3 {[%clk 0:02:47.1]} 13... Kf7 {[%clk 0:02:59.9]} 14.
b5 {[%clk 0:02:46.4]} 14... Bg7 {[%clk 0:02:53.6]} 15. b4 {[%clk 0:02:44.2]}
15... Rhb8 {[%clk 0:02:48.5]} 16. Be2 {[%clk 0:02:40.8]} 16... Bg6 {[%clk
0:02:44.4]} 17. g4 {[%clk 0:02:40.1]} 17... h6 {[%clk 0:02:43]} 18. O-O {[%clk
0:02:37.4]} 18... e5 {[%clk 0:02:42.5]} 19. Rfc1 {[%clk 0:02:34.6]} 19... e4
{[%clk 0:02:39.8]} 20. Nh2 {[%clk 0:02:31.6]} 20... f5 {[%clk 0:02:40.6]} 21.
gxf5 {[%clk 0:02:32.1]} 21... Bxf5 {[%clk 0:02:42.5]} 22. Ra3 {[%clk 0:02:25.3]}
22... cxb5 {[%clk 0:02:38.8]} 23. Bxb5 {[%clk 0:02:26]} 23... a6 {[%clk
0:02:37.8]} 24. Be2 {[%clk 0:02:27]} 24... Rc8 {[%clk 0:02:34.8]} 25. Nb1 {[%clk
0:02:26.2]} 25... Rab8 {[%clk 0:02:33]} 26. Nc3 {[%clk 0:02:26.8]} 26... Nf6
{[%clk 0:02:31.5]} 27. b5 {[%clk 0:02:14.9]} 27... axb5 {[%clk 0:02:25]} 28.
Nxb5 {[%clk 0:02:16.8]} 28... Bf8 {[%clk 0:02:26.4]} 29. Ra7 {[%clk 0:02:17.4]}
29... Kg6 {[%clk 0:02:22.9]} 30. Nf1 {[%clk 0:02:14.5]} 30... Rc6 {[%clk
0:02:14.8]} 31. Nc3 {[%clk 0:02:08.2]} 31... Rc7 {[%clk 0:02:06.4]} 32. Rb1
{[%clk 0:02:06.6]} 32... Bd7 {[%clk 0:01:57.9]} 33. Rb6 {[%clk 0:02:04.9]} 33...
Bc6 {[%clk 0:01:56.7]} 34. Nd2 {[%clk 0:01:58.7]} 34... Nd7 {[%clk 0:01:57.7]}
35. Rb1 {[%clk 0:01:58.3]} 35... Nxc5 {[%clk 0:01:57.1]} 36. dxc5 {[%clk
0:01:58.7]} 36... Bxc5 {[%clk 0:01:59]} 37. Ra2 {[%clk 0:01:57.8]} 37... Rf8
{[%clk 0:01:59.3]} 38. Nb3 {[%clk 0:01:56.2]} 38... Bd6 {[%clk 0:01:54.7]} 39.
Rd1 {[%clk 0:01:56.3]} 39... Rf5 {[%clk 0:01:37.3]} 40. Bg4 {[%clk 0:01:53.5]}
40... Re5 {[%clk 0:01:36.7]} 41. Nd4 {[%clk 0:01:49.2]} 41... h5 {[%clk
0:01:36.5]} 42. Be2 {[%clk 0:01:48.7]} 42... g4 {[%clk 0:01:37.8]} 43. Ncb5
{[%clk 0:01:49]} 43... Rd7 {[%clk 0:01:33.2]} 44. Nxd6 {[%clk 0:01:50.1]} 44...
Rxd6 {[%clk 0:01:35.1]} 45. g3 {[%clk 0:01:47.7]} 45... Kg5 {[%clk 0:01:32.8]}
46. Kg2 {[%clk 0:01:48.4]} 46... Re7 {[%clk 0:01:29.2]} 47. Rh1 {[%clk
0:01:48.6]} 47... Rf7 {[%clk 0:01:30.5]} 48. Ra8 {[%clk 0:01:44.9]} 48... Rdf6
{[%clk 0:01:31.3]} 49. Rg8+ {[%clk 0:01:44.6]} 49... Kh6 {[%clk 0:01:28]} 50.
Rf1 {[%clk 0:01:34.1]} 50... Kh7 {[%clk 0:01:17.5]} 51. Rg5 {[%clk 0:01:30.7]}
51... Kh6 {[%clk 0:01:17.5]} 52. Re5 {[%clk 0:01:31.8]} 52... Kg6 {[%clk
0:01:14.4]} 53. Bb5 {[%clk 0:01:24.9]} 53... Rc7 {[%clk 0:01:08.2]} 54. Bxc6
{[%clk 0:01:25.5]} 54... bxc6 {[%clk 0:01:10.1]} 55. Ne2 {[%clk 0:01:26.4]}
55... Rb7 {[%clk 0:01:04.8]} 56. Nf4+ {[%clk 0:01:27.2]} 56... Kf7 {[%clk
0:01:03.2]} 57. Rxh5 {[%clk 0:01:28.2]} 57... Rb2 {[%clk 0:01:00.7]} 58. Rh7+
{[%clk 0:01:28.1]} 58... Kg8 {[%clk 0:01:01.6]} 59. Rfh1 {[%clk 0:01:28.1]}
59... d4 {[%clk 0:01:00.8]} 60. Rh8+ {[%clk 0:01:28.3]} 1-0